bitfinex-derivatives/quotes_BTCF0:USTF0_20250130
["timestamp","ask_amount","ask_price","bid_price","bid_amount"]
[1738243801350,0.0633,105330.0,105320.0,0.189926]
[1738243801963,0.10410716,105340.0,105330.0,0.189907]
[1738243802258,0.00142433,105380.0,105370.0,0.189835]
[1738243802458,0.00142433,105380.0,105370.0,0.911435]
[1738243802655,0.10553149,105380.0,105360.0,0.611252]
[1738243802856,0.29535249,105380.0,105360.0,0.611252]
[1738243803056,0.29394216,105370.0,105360.0,0.3908]
[1738243803358,0.189835,105370.0,105360.0,0.0001426]
[1738243803560,0.29394216,105370.0,105360.0,0.0001426]
[1738243803951,0.189835,105370.0,105360.0,0.0001426]
[1738243804156,0.189835,105370.0,105360.0,0.3609426]
[1738243804361,0.0011426,105380.0,105370.0,0.189835]
[1738243804571,0.0071426,105380.0,105370.0,0.65574216]
[1738243804952,0.1,105400.0,105370.0,0.46490716]
[1738243805257,0.1,105400.0,105390.0,4.3e-07]
[1738243805258,0.75468816,105400.0,105390.0,4.3e-07]
[1738243805451,0.75468816,105400.0,105270.0,0.70010404]
[1738243805452,0.02168483,105300.0,105270.0,0.70010404]
[1738243805653,0.3608,105310.0,105270.0,0.75356624]
[1738243805861,0.3608,105290.0,105280.0,0.189992]
[1738243806049,0.7216,105290.0,105270.0,0.60491098]
[1738243806250,0.01,105290.0,105270.0,0.60491098]
[1738243806663,0.01,105290.0,105270.0,0.60505358]
[1738243806664,0.65490516,105280.0,105270.0,0.60505358]
[1738243806855,0.10424976,105290.0,105270.0,0.60505358]
[1738243807048,0.10410716,105280.0,105270.0,0.96585358]
[1738243807258,0.0111426,105290.0,105270.0,0.96585358]
[1738243807453,0.10524976,105290.0,105280.0,0.3608]
[1738243807660,0.0011426,105290.0,105280.0,0.3608]
[1738243807964,0.47604976,105290.0,105270.0,0.96585358]
[1738243808153,0.10410716,105280.0,105270.0,0.96585358]
[1738243808354,0.11524976,105290.0,105270.0,0.96585358]
[1738243808554,0.0121426,105290.0,105280.0,0.3608]
[1738243808755,0.3621426,105290.0,105280.0,0.3608]
[1738243808964,0.0011426,105290.0,105280.0,0.4251]
[1738243809259,0.0001426,105290.0,105280.0,0.4251]
[1738243809467,0.0001426,105290.0,105280.0,0.615098]
[1738243810055,0.10410716,105320.0,105300.0,0.189961]
[1738243810362,0.01,105320.0,105310.0,0.0317]
[1738243810665,0.11410716,105320.0,105300.0,0.3608]
[1738243810962,0.01,105300.0,105290.0,0.3608]
[1738243811359,0.01,105290.0,105280.0,0.3964]
[1738243811562,0.11410716,105290.0,105280.0,0.3975426]
[1738243811758,0.11410716,105290.0,105280.0,0.5875406]
[1738243811958,0.11410716,105300.0,105280.0,0.5865406]
[1738243812160,0.11424976,105300.0,105290.0,0.3648]
[1738243812358,0.11424976,105300.0,105290.0,0.55478]
[1738243812359,0.0001426,105300.0,105290.0,0.55478]
[1738243812554,0.0001426,105300.0,105290.0,0.85078]
[1738243812757,0.10410716,105310.0,105300.0,0.189946]
[1738243812958,0.10410716,105310.0,105300.0,0.550746]
[1738243813264,0.11410716,105330.0,105310.0,0.189944]
[1738243813459,0.01,105330.0,105320.0,0.3608]
[1738243813659,0.01,105330.0,105310.0,0.581144]
[1738243813855,0.11410716,105330.0,105320.0,0.3608]
[1738243814364,0.10410716,105330.0,105320.0,0.550726]
[1738243815561,0.56901432,105330.0,105310.0,0.3609426]
[1738243815763,0.10410716,105320.0,105310.0,0.3609426]
[1738243815964,0.01,105310.0,105300.0,0.3608]
[1738243816159,0.10410716,105310.0,105290.0,0.3936]
[1738243816357,0.10410716,105300.0,105290.0,0.3936]
[1738243816559,0.20821432,105300.0,105290.0,0.3608]
[1738243816862,0.36,105290.0,105280.0,0.3608]
[1738243817176,0.46410716,105290.0,105280.0,0.3608]
[1738243817468,0.46410716,105290.0,105280.0,0.3609426]
[1738243817672,0.82490716,105290.0,105280.0,0.0001426]
[1738243818663,1.3679406,105290.0,105280.0,0.001]
[1738243818864,1.3679406,105290.0,105270.0,0.3608]
[1738243818865,1.3579406,105290.0,105270.0,0.3608]
[1738243819169,0.01,105280.0,105270.0,0.3608]
[1738243819574,0.1661606,105280.0,105270.0,0.3608]
[1738243821267,0.01,105280.0,105270.0,0.3608]
[1738243821459,0.1661606,105280.0,105270.0,0.3608]
[1738243821967,0.190016,105270.0,105260.0,0.0001426]
[1738243822171,0.7069766,105270.0,105260.0,0.0001426]
[1738243822663,0.190052,105250.0,105230.0,0.3918]
[1738243822863,0.35,105240.0,105230.0,0.3918]
[1738243823062,0.36,105240.0,105230.0,0.3918]
[1738243823561,0.36,105240.0,105230.0,0.3608]
[1738243823763,0.5161606,105240.0,105230.0,0.3608]
[1738243823971,0.36,105240.0,105230.0,0.3608]
[1738243824771,0.35,105240.0,105230.0,0.550888]
[1738243824967,0.0101426,105250.0,105230.0,0.7070486]
[1738243825168,0.0101426,105250.0,105240.0,0.4258]
[1738243825471,0.0001426,105250.0,105240.0,0.61587]
[1738243826472,0.0021426,105250.0,105240.0,0.61687]
[1738243826664,0.0021426,105250.0,105240.0,0.61887]
[1738243827265,0.0021426,105250.0,105240.0,0.7750306]
[1738243827973,0.540003,105280.0,105260.0,0.190034]
[1738243828173,0.540003,105280.0,105270.0,0.3918]
[1738243828375,0.36,105280.0,105270.0,0.3918]
[1738243828584,0.19186394,105310.0,105280.0,0.189993]
[1738243828868,0.189967,105300.0,105290.0,0.3608]
[1738243829064,0.539967,105300.0,105290.0,0.3608]
[1738243829665,0.549967,105300.0,105290.0,0.3608]
[1738243830066,0.7061276,105300.0,105290.0,0.3608]
[1738243830271,0.549967,105300.0,105290.0,0.3608]
[1738243830680,0.7061276,105300.0,105290.0,0.3608]
[1738243831167,0.36,105300.0,105290.0,0.3608]
[1738243831670,0.35,105300.0,105290.0,0.7069406]
[1738243832172,0.361,105300.0,105290.0,0.7079406]
[1738243832671,0.011,105300.0,105290.0,0.7069406]
[1738243832871,0.009,105300.0,105290.0,0.7079406]
[1738243833576,0.009,105300.0,105290.0,0.55178]
[1738243834177,0.009,105300.0,105290.0,0.7079406]
[1738243834366,0.009,105300.0,105290.0,0.55178]
[1738243837580,0.019,105300.0,105290.0,0.55178]
[1738243837776,0.019,105300.0,105290.0,0.3618]
[1738243837984,0.208962,105300.0,105290.0,0.3618]
[1738243843078,0.7259226,105300.0,105290.0,0.001]
[1738243843285,0.7259226,105300.0,105280.0,0.0001426]
[1738243843286,0.18998,105290.0,105280.0,0.0001426]
[1738243843476,0.7069406,105290.0,105280.0,0.0001426]
[1738243843878,0.01,105260.0,105250.0,0.612048]
[1738243844084,0.01,105260.0,105250.0,0.642648]
[1738243844280,0.01,105260.0,105250.0,0.7988086]
[1738243845175,0.0001426,105270.0,105260.0,0.190034]
[1738243845381,0.0001426,105270.0,105260.0,0.7069946]
[1738243846274,0.0001426,105270.0,105260.0,0.550834]
[1738243846483,0.1901586,105270.0,105260.0,0.3608]
[1738243847589,0.1901586,105270.0,105260.0,0.006]
[1738243847590,0.7071192,105270.0,105260.0,0.006]
[1738243847986,0.190052,105250.0,105240.0,0.0001426]
[1738243848181,0.190052,105250.0,105240.0,0.3609426]
[1738243848386,0.36,105250.0,105240.0,0.5171032]
[1738243848576,0.01,105260.0,105250.0,0.190041]
[1738243848773,0.0191426,105270.0,105260.0,0.190034]
[1738243848987,0.0191426,105270.0,105260.0,0.7709946]
[1738243849177,0.0001426,105270.0,105260.0,0.8038946]
[1738243849382,0.0101426,105270.0,105260.0,0.647734]
[1738243849993,0.2001586,105270.0,105260.0,0.647734]
[1738243850287,0.2001586,105270.0,105260.0,0.615434]
[1738243850986,0.0101426,105270.0,105260.0,0.615434]
[1738243851175,0.0171426,105270.0,105260.0,0.616434]
[1738243851491,0.0191426,105270.0,105260.0,0.616434]
[1738243852482,0.0091426,105270.0,105260.0,0.616434]
[1738243852791,0.1991586,105270.0,105260.0,0.3618]
[1738243853395,0.7806192,105270.0,105260.0,0.001]
[1738243853688,0.8115192,105270.0,105260.0,0.001]
[1738243854080,0.190052,105250.0,105240.0,0.3937426]
[1738243854679,0.190052,105250.0,105240.0,0.3609426]
[1738243855375,0.190052,105250.0,105240.0,0.3669426]
[1738243855983,0.5061606,105260.0,105240.0,0.3669426]
[1738243855984,0.35,105260.0,105240.0,0.5231032]
[1738243856179,0.0001426,105270.0,105260.0,0.190034]
[1738243856379,0.01,105300.0,105260.0,0.5644646]
[1738243856587,0.01,105300.0,105290.0,0.55078]
[1738243856784,0.01,105300.0,105290.0,0.58328]
[1738243856984,0.199962,105300.0,105290.0,0.58328]
[1738243857184,0.199962,105300.0,105290.0,0.22248]
[1738243857379,0.189962,105300.0,105290.0,0.0325]
[1738243857599,0.19998,105290.0,105280.0,0.3609426]
[1738243857789,0.54998,105290.0,105280.0,0.5509406]
[1738243858496,0.35,105290.0,105280.0,0.7071012]
[1738243858692,0.01,105300.0,105290.0,0.18998]
[1738243858884,0.01,105300.0,105290.0,0.7390406]
[1738243859085,0.01,105300.0,105290.0,0.7717406]
[1738243859286,0.01,105300.0,105290.0,0.61558]
[1738243860097,0.019,105300.0,105290.0,0.61658]
[1738243860390,0.019,105300.0,105290.0,0.7727406]
[1738243860692,0.01,105330.0,105320.0,0.189926]
[1738243860892,0.01,105330.0,105320.0,1.0676866]
[1738243861393,0.01,105340.0,105320.0,0.8777606]
[1738243861597,0.08746546,105350.0,105330.0,0.5169606]
[1738243861894,0.07946546,105350.0,105340.0,0.7068506]
[1738243862195,0.05803167,105350.0,105340.0,0.7068506]
[1738243862695,0.00142453,105370.0,105360.0,0.189854]
[1738243862888,0.00142453,105370.0,105360.0,1.15165523]
[1738243863894,0.00142453,105370.0,105360.0,0.911454]
[1738243864199,0.19125953,105370.0,105360.0,0.911454]
[1738243864593,0.01142453,105370.0,105360.0,0.911454]
[1738243864904,0.28298859,105390.0,105380.0,0.189817]
[1738243865095,0.28298859,105390.0,105380.0,1.21729823]
[1738243865291,0.28298859,105390.0,105380.0,0.977097]
[1738243865785,0.299783,105400.0,105390.0,0.189799]
[1738243865998,0.299783,105400.0,105390.0,0.550599]
[1738243866600,0.299783,105400.0,105380.0,0.551613]
[1738243866791,0.189799,105390.0,105380.0,0.3618]
[1738243866988,0.79080023,105390.0,105380.0,0.001]
[1738243867188,0.01,105380.0,105370.0,0.0001426]
[1738243867397,0.199817,105380.0,105370.0,0.3609426]
[1738243868499,0.560617,105380.0,105370.0,0.0001426]
[1738243868695,0.199817,105380.0,105370.0,0.0001426]
[1738243868900,0.01,105380.0,105370.0,0.3609426]
[1738243869105,0.01,105380.0,105370.0,0.5507776]
[1738243869399,0.011,105380.0,105370.0,0.5517776]
[1738243869600,0.014,105380.0,105370.0,0.5517776]
[1738243869799,0.004,105380.0,105370.0,0.5517776]
[1738243870005,0.11,105400.0,105390.0,0.189799]
[1738243870298,0.1,105400.0,105380.0,0.3608]
[1738243870600,0.36,105380.0,105370.0,0.5517746]
[1738243870807,0.549817,105380.0,105370.0,0.1909746]
[1738243870992,0.539817,105380.0,105370.0,0.0011426]
[1738243871202,0.900617,105380.0,105370.0,0.0011426]
[1738243871395,0.902617,105380.0,105370.0,0.0011426]
[1738243871801,0.902617,105380.0,105370.0,0.0001426]
[1738243871997,0.189854,105360.0,105350.0,0.3608]
[1738243872206,0.189854,105360.0,105350.0,0.911472]
[1738243873102,0.189854,105360.0,105350.0,0.915472]
[1738243873903,0.01,105360.0,105350.0,0.915472]
[1738243874210,0.01,105360.0,105350.0,0.917472]
[1738243874794,0.01,105360.0,105350.0,0.913472]
[1738243875092,0.202854,105360.0,105350.0,0.551672]
[1738243875702,0.202854,105360.0,105350.0,0.3618]
[1738243876005,0.202854,105360.0,105350.0,0.551672]
[1738243876804,0.202854,105360.0,105350.0,0.912472]
[1738243876805,0.003,105360.0,105350.0,0.912472]
[1738243877102,0.013,105360.0,105330.0,0.12787168]
[1738243877303,0.013,105360.0,105350.0,0.189872]
[1738243878203,0.013,105360.0,105350.0,0.191872]
[1738243878403,0.01,105360.0,105350.0,0.556672]
[1738243880413,0.01,105360.0,105350.0,0.619272]
[1738243880613,0.199854,105360.0,105350.0,0.619272]
[1738243881105,0.560654,105360.0,105350.0,0.0686]
[1738243881313,0.199854,105360.0,105350.0,0.619272]
[1738243881619,0.0001426,105370.0,105360.0,0.189854]
[1738243881808,0.1899776,105370.0,105360.0,0.550654]
[1738243882614,0.20005833,105370.0,105360.0,0.3608]
[1738243882810,0.189854,105360.0,105350.0,0.619265]
[1738243883111,0.189854,105360.0,105350.0,0.77503205]
[1738243883817,0.189854,105360.0,105350.0,0.77303205]
[1738243884205,0.189854,105360.0,105350.0,0.76903205]
[1738243884816,0.189854,105360.0,105350.0,0.619265]
[1738243885910,0.0001426,105370.0,105350.0,0.58516705]
[1738243886216,0.0001426,105370.0,105360.0,0.70642105]
[1738243886406,0.0001426,105370.0,105360.0,0.8621881]
[1738243886612,0.43018892,105400.0,105390.0,0.189799]
[1738243886811,0.43018892,105400.0,105390.0,0.70636605]
[1738243887027,0.43018892,105400.0,105390.0,0.73716605]
[1738243887313,0.24040092,105400.0,105390.0,0.73716605]
[1738243887516,0.43026265,105400.0,105390.0,0.73716605]
[1738243887712,0.24040092,105400.0,105390.0,0.73716605]
[1738243888915,0.24440092,105400.0,105390.0,0.73816605]
[1738243889812,0.24440092,105400.0,105390.0,0.76996605]
[1738243891318,0.21724848,105400.0,105390.0,0.76996605]
[1738243891623,0.21724848,105400.0,105390.0,0.78158132]
[1738243894024,0.21424848,105400.0,105390.0,0.78158132]
[1738243894213,0.21324848,105400.0,105390.0,0.78158132]
[1738243895219,0.77382948,105400.0,105390.0,0.20241427]
[1738243895426,0.77382948,105400.0,105390.0,0.190799]
[1738243895720,0.660581,105400.0,105390.0,0.190799]
[1738243896320,0.660581,105400.0,105390.0,0.001]
[1738243896517,0.80634805,105400.0,105390.0,0.001]
[1738243896717,0.680981,105400.0,105390.0,0.001]
[1738243897225,1.030981,105400.0,105390.0,0.190799]
[1738243897427,0.680181,105400.0,105390.0,0.190799]
[1738243897631,1.040981,105400.0,105390.0,0.190799]
[1738243898911,1.15422948,105400.0,105390.0,0.190799]
[1738243900318,0.76382948,105400.0,105390.0,0.190799]
[1738243900516,0.76382948,105400.0,105390.0,0.34656605]
[1738243901324,0.57404848,105400.0,105390.0,0.34656605]
[1738243901530,0.21324848,105400.0,105390.0,0.70736605]
[1738243902529,0.21324848,105400.0,105390.0,0.551599]
[1738243902831,0.3536494,105400.0,105390.0,0.551599]
[1738243903015,0.3536494,105400.0,105390.0,0.552599]
[1738243903423,0.9142304,105400.0,105390.0,0.191799]
[1738243905128,0.5534304,105400.0,105390.0,0.191799]
[1738243905328,0.5434304,105400.0,105390.0,0.002]
[1738243905527,0.9042304,105400.0,105390.0,0.191799]
[1738243905929,0.5434304,105400.0,105390.0,0.34756605]
[1738243906131,0.3636494,105400.0,105390.0,0.70836605]
[1738243906527,0.3636494,105400.0,105390.0,0.70636605]
[1738243906731,0.22324848,105400.0,105390.0,0.70736605]
[1738243908034,0.41302948,105400.0,105390.0,0.70736605]
[1738243908233,0.41302948,105400.0,105390.0,0.34656605]
[1738243908438,0.77382948,105400.0,105390.0,0.190799]
[1738243908737,0.77391021,105400.0,105390.0,0.191799]
[1738243909235,0.77382948,105400.0,105390.0,0.191799]
[1738243909936,0.76382948,105400.0,105390.0,0.191799]
[1738243910135,0.41302948,105400.0,105390.0,0.191799]
[1738243910342,0.77382948,105400.0,105390.0,0.191799]
[1738243910932,1.12382948,105400.0,105390.0,0.191799]
[1738243911139,0.21324848,105400.0,105390.0,0.70836605]
[1738243912941,0.58404848,105400.0,105390.0,0.191799]
[1738243913131,0.77382948,105400.0,105390.0,0.34756605]
[1738243913633,0.77382948,105400.0,105390.0,0.191799]
[1738243913938,0.41302948,105400.0,105390.0,0.34756605]
[1738243914134,0.40302948,105400.0,105390.0,0.34756605]
[1738243915642,0.21324848,105400.0,105390.0,0.34756605]
[1738243916045,0.13958445,105400.0,105390.0,0.34756605]
[1738243916745,0.10583994,105400.0,105390.0,0.34756605]
[1738243917834,0.35826211,105400.0,105390.0,0.34656605]
[1738243918039,0.35826211,105400.0,105390.0,0.35056605]
[1738243918241,0.35826211,105400.0,105390.0,0.34956605]
[1738243918441,0.35826211,105400.0,105390.0,0.35256605]
[1738243919045,0.35826211,105400.0,105390.0,0.34956605]
[1738243919244,0.35826211,105400.0,105390.0,0.35156605]
[1738243919431,0.35826211,105400.0,105390.0,0.71236605]
[1738243920333,0.35826211,105400.0,105390.0,0.35156605]
[1738243920643,0.35826211,105400.0,105390.0,0.195799]
[1738243921436,0.36826211,105400.0,105390.0,0.195799]
[1738243921637,0.199781,105400.0,105390.0,0.195799]
[1738243922543,0.199781,105400.0,105390.0,0.34756605]
[1738243922749,0.199781,105400.0,105390.0,0.71236605]
[1738243923051,0.01,105400.0,105390.0,0.71236605]
[1738243923739,0.01,105400.0,105390.0,0.556599]
[1738243923941,0.01,105400.0,105390.0,0.71236605]
[1738243924246,0.01,105400.0,105390.0,0.556599]
[1738243924450,0.560581,105400.0,105390.0,0.195799]
[1738243924748,0.560581,105400.0,105390.0,0.29958962]
[1738243924946,0.560581,105400.0,105390.0,0.195799]
[1738243925448,0.560581,105400.0,105390.0,0.193799]
[1738243925649,0.560581,105400.0,105390.0,0.195799]
[1738243925949,0.550581,105400.0,105390.0,0.006]
[1738243927347,0.550581,105400.0,105390.0,0.005]
[1738243927741,0.65437162,105400.0,105390.0,0.005]
[1738243927947,0.550581,105400.0,105390.0,0.005]
[1738243928143,0.550581,105400.0,105390.0,0.002]
[1738243929037,0.65437162,105400.0,105390.0,0.002]
[1738243929244,0.189799,105390.0,105380.0,0.0001426]
[1738243929463,0.613499,105390.0,105380.0,0.0001426]
[1738243929750,0.61357973,105390.0,105380.0,0.0001426]
[1738243929948,0.613499,105390.0,105380.0,0.0001426]
[1738243930537,0.613499,105390.0,105380.0,0.0021426]
[1738243931146,0.613499,105390.0,105380.0,0.0061426]
[1738243931850,0.613499,105390.0,105380.0,0.29975122]
[1738243932262,0.963499,105390.0,105380.0,0.29975122]
[1738243932552,1.2578397,105390.0,105380.0,0.1959606]
[1738243932749,1.2578397,105390.0,105380.0,0.0061426]
[1738243932951,1.36163032,105390.0,105380.0,0.0061426]
[1738243933152,1.81970094,105390.0,105380.0,0.0061426]
[1738243933453,0.199838,105370.0,105360.0,0.29364462]
[1738243933654,0.560638,105370.0,105360.0,0.29364462]
[1738243934552,0.560638,105370.0,105360.0,0.30264462]
[1738243935355,0.560638,105370.0,105360.0,0.29764462]
[1738243935743,0.0101426,105380.0,105370.0,0.189836]
[1738243935950,0.2943407,105390.0,105380.0,0.189817]
[1738243936249,0.4841397,105390.0,105380.0,0.29360762]
[1738243936447,0.97402848,105390.0,105380.0,0.29360762]
[1738243937052,0.42342948,105390.0,105380.0,0.65440762]
[1738243938157,0.43142948,105390.0,105380.0,0.65540762]
[1738243938345,0.62122848,105390.0,105380.0,0.65540762]
[1738243938545,0.62122848,105390.0,105380.0,0.551617]
[1738243938748,0.61322848,105390.0,105380.0,0.556617]
[1738243938944,0.61522848,105390.0,105380.0,0.556617]
[1738243939649,0.61322848,105390.0,105380.0,0.557617]
[1738243939962,0.36011305,105390.0,105380.0,0.557617]
[1738243940349,0.36011305,105390.0,105380.0,0.551617]
[1738243940555,0.36011305,105390.0,105380.0,0.554617]
[1738243941055,0.17031405,105390.0,105380.0,0.67331954]
[1738243944056,0.72091305,105390.0,105380.0,0.20872892]
[1738243945449,0.72091305,105390.0,105380.0,0.20472892]
[1738243946059,0.550599,105390.0,105380.0,0.20472892]
[1738243947253,0.01,105380.0,105370.0,0.1899726]
[1738243947566,0.65440762,105380.0,105370.0,0.0001426]
[1738243947746,0.75080762,105380.0,105370.0,0.0001426]
[1738243949063,0.75080762,105380.0,105370.0,0.0011426]
[1738243950361,0.75080762,105380.0,105370.0,0.0001426]
[1738243950560,0.647017,105380.0,105370.0,0.0001426]
[1738243951255,0.75080762,105380.0,105370.0,0.0001426]
[1738243951654,0.647017,105380.0,105370.0,0.0001426]
[1738243952164,0.997017,105380.0,105370.0,0.0001426]
[1738243953465,1.10080762,105380.0,105370.0,0.0001426]
[1738243954261,0.997017,105380.0,105370.0,0.0001426]
[1738243954758,1.10080762,105380.0,105370.0,0.0001426]
[1738243956160,1.29959562,105380.0,105370.0,0.0001426]
[1738243956359,0.189836,105370.0,105360.0,0.01357326]
[1738243956560,0.199854,105360.0,105350.0,0.19128852]
[1738243956863,0.560654,105360.0,105350.0,0.19128852]
[1738243957061,0.560654,105360.0,105350.0,0.2053204]
[1738243957464,0.66444462,105360.0,105350.0,0.0154554]
[1738243957762,0.189872,105350.0,105340.0,0.2527286]
[1738243958060,0.550672,105350.0,105340.0,0.2527286]
[1738243959058,0.550672,105350.0,105340.0,0.2647286]
[1738243959455,0.189872,105350.0,105340.0,0.36851922]
[1738243961356,0.550672,105350.0,105340.0,0.2020286]
[1738243961568,0.550672,105350.0,105340.0,0.21502463]
[1738243961957,0.550672,105350.0,105340.0,0.31881525]
[1738243962158,0.189872,105350.0,105340.0,0.31881525]
[1738243962756,0.199872,105350.0,105340.0,0.31881525]
[1738243963765,0.189872,105350.0,105340.0,0.31881525]
[1738243964075,0.199872,105350.0,105340.0,0.31881525]
[1738243965868,0.199872,105350.0,105340.0,0.67961525]
[1738243968470,0.11379062,105350.0,105340.0,0.21502463]
[1738243968677,1.00446262,105350.0,105340.0,0.21502463]
[1738243968861,0.932972,105350.0,105340.0,0.21502463]
[1738243969057,0.582972,105350.0,105340.0,0.21502463]
[1738243969260,0.189872,105350.0,105340.0,0.21502463]
[1738243969461,0.539872,105350.0,105340.0,0.31881525]
[1738243970571,0.539872,105350.0,105340.0,0.21502463]
[1738243972264,0.539872,105350.0,105340.0,0.02513863]
[1738243972466,0.572072,105350.0,105340.0,0.02513863]
[1738243972675,0.965272,105350.0,105340.0,0.02513863]
[1738243972972,0.604472,105350.0,105340.0,0.02513863]
[1738243973981,1.06906262,105350.0,105340.0,0.02513863]
[1738243974270,1.06906262,105350.0,105340.0,0.0121426]
[1738243974472,0.71906262,105350.0,105340.0,0.0121426]
[1738243975473,0.71906262,105350.0,105340.0,0.0091426]
[1738243975668,0.71906262,105350.0,105340.0,0.0001426]
[1738243976063,0.01,105320.0,105310.0,0.38963062]
[1738243976268,0.199926,105320.0,105310.0,0.2987258]
[1738243976481,0.199926,105320.0,105310.0,0.1087858]
[1738243977176,0.199926,105320.0,105310.0,0.2987298]
[1738243977383,0.199926,105320.0,105310.0,0.3077298]
[1738243977680,0.0101426,105330.0,105320.0,0.189926]
[1738243977878,0.0101426,105330.0,105320.0,0.75830724]
[1738243978077,0.0001426,105330.0,105320.0,0.65451662]
[1738243978975,0.0111426,105330.0,105320.0,0.66251662]
[1738243979179,0.0111426,105330.0,105320.0,0.30171662]
[1738243979874,0.0111426,105330.0,105320.0,0.66251662]
[1738243980581,0.0111426,105330.0,105320.0,0.30171662]
[1738243981083,0.0111426,105330.0,105320.0,0.66251662]
[1738243981670,0.0011426,105330.0,105320.0,0.66251662]
[1738243983177,0.0111426,105330.0,105320.0,0.66251662]
[1738243983985,0.0011426,105330.0,105320.0,0.66251662]
[1738243985975,0.01142433,105350.0,105320.0,0.57638124]
[1738243986187,0.01142433,105350.0,105340.0,0.65448062]
[1738243987083,0.01142433,105350.0,105340.0,0.74848062]
[1738243987684,0.0101426,105360.0,105350.0,0.189872]
[1738243987986,0.0101426,105360.0,105350.0,0.29366262]
[1738243988784,0.0101426,105360.0,105350.0,0.29666262]
[1738243989379,0.0101426,105360.0,105350.0,0.29766262]
[1738243989984,0.1899966,105360.0,105350.0,0.193872]
[1738243991088,0.5399966,105360.0,105350.0,0.193872]
[1738243992086,0.71042218,105360.0,105350.0,0.193872]
[1738243993285,0.71042218,105360.0,105350.0,0.20697532]
[1738243994488,1.07122218,105360.0,105350.0,0.20697532]
[1738243994788,0.72122218,105360.0,105350.0,0.20697532]
[1738243995188,1.07122218,105360.0,105350.0,0.20697532]
[1738243995788,0.9007966,105360.0,105350.0,0.20697532]
[1738243998685,0.5399966,105360.0,105350.0,0.20697532]
[1738244007993,0.73889875,105360.0,105350.0,0.20697532]
[1738244008702,0.38889875,105360.0,105350.0,0.20697532]
[1738244009199,0.38889875,105360.0,105350.0,0.31076594]
[1738244010995,0.38889875,105360.0,105350.0,0.20697532]
[1738244011499,0.38889875,105360.0,105350.0,0.01710332]
[1738244011500,0.85348937,105360.0,105350.0,0.01710332]
[1738244011794,0.65458722,105360.0,105350.0,0.20697532]
[1738244011995,0.65458722,105360.0,105350.0,0.01710332]
[1738244012297,0.18989,105340.0,105330.0,0.1900476]
[1738244012498,0.65448062,105340.0,105330.0,0.1900476]
[1738244012685,0.68578062,105340.0,105330.0,0.1900476]
[1738244012886,1.03578062,105340.0,105330.0,0.1900476]
[1738244013080,0.68578062,105340.0,105330.0,0.1900476]
[1738244013293,0.61409,105340.0,105330.0,0.1900476]
[1738244013696,0.96409,105340.0,105330.0,0.1900476]
[1738244014492,0.96509,105340.0,105330.0,0.2020476]
[1738244014691,0.96509,105340.0,105330.0,0.21425505]
[1738244016690,1.06888062,105340.0,105330.0,0.02435005]
[1738244017393,1.42968062,105340.0,105330.0,0.02435005]
[1738244019800,1.07968062,105340.0,105330.0,0.02435005]
[1738244020103,1.07968062,105340.0,105330.0,0.0121426]
[1738244021301,1.07968062,105340.0,105330.0,0.0091426]
[1738244021497,1.07868062,105340.0,105330.0,0.0041426]
[1738244022607,0.189926,105320.0,105310.0,0.189938]
[1738244022797,0.550726,105320.0,105310.0,0.189938]
[1738244023708,0.550726,105320.0,105310.0,0.20494678]
[1738244024191,0.551726,105320.0,105310.0,0.21394678]
[1738244026400,0.65551662,105320.0,105310.0,0.21394678]
[1738244026595,0.68861662,105320.0,105310.0,0.21394678]
[1738244026893,0.68861662,105320.0,105310.0,0.012]
[1738244026894,1.04941662,105320.0,105310.0,0.012]
[1738244028607,1.04841662,105320.0,105310.0,0.004]
[1738244029207,0.189944,105310.0,105300.0,0.1001426]
[1738244029505,0.71993462,105310.0,105300.0,0.1001426]
[1738244029812,1.06993462,105310.0,105300.0,0.1001426]
[1738244034807,0.01,105300.0,105270.0,0.19879262]
[1738244035003,0.01,105300.0,105230.0,0.39567428]
[1738244035004,0.19007,105240.0,105230.0,0.39567428]
[1738244035202,0.19007,105240.0,105230.0,0.26989928]
[1738244035203,0.81193124,105240.0,105230.0,0.26989928]
[1738244035408,0.81193124,105240.0,105220.0,0.28262449]
[1738244035409,0.200088,105230.0,105220.0,0.28262449]
[1738244035603,0.66467862,105230.0,105220.0,0.28262449]
[1738244035927,0.56838124,105230.0,105210.0,0.36679766]
[1738244036213,0.75848724,105220.0,105210.0,0.18221266]
[1738244037107,0.65469662,105220.0,105210.0,0.18721266]
[1738244038607,0.65469662,105220.0,105210.0,0.0051426]
[1738244038608,0.550906,105220.0,105210.0,0.0051426]
[1738244038817,0.65469662,105220.0,105210.0,0.0001426]
[1738244039003,0.65469662,105220.0,105210.0,0.0319426]
[1738244040214,0.75848724,105220.0,105210.0,0.0001426]
[1738244040408,0.01,105210.0,105200.0,0.1]
[1738244040713,0.76850524,105210.0,105200.0,0.1]
[1738244041099,0.19016,105190.0,105180.0,0.0323]
[1738244041298,0.200196,105170.0,105160.0,0.0638]
[1738244041511,1.02558662,105170.0,105160.0,0.0961]
[1738244041706,0.921796,105170.0,105160.0,0.916314]
[1738244042105,1.02558662,105170.0,105160.0,0.7261]
[1738244042316,1.01558662,105170.0,105160.0,0.10778003]
[1738244043515,1.01658662,105170.0,105160.0,0.11678003]
[1738244044016,1.01658662,105170.0,105160.0,0.1091]
[1738244046204,1.01658662,105170.0,105160.0,0.0774]
[1738244046422,1.01658662,105170.0,105160.0,0.013]
[1738244046712,0.190251,105140.0,105130.0,0.0975]
[1738244046911,1.01564162,105140.0,105130.0,0.0975]
[1738244049013,0.200269,105130.0,105120.0,9.506e-05]
[1738244049210,0.66485962,105130.0,105120.0,9.506e-05]
[1738244050110,0.66585962,105130.0,105120.0,0.00309506]
[1738244051410,0.66685962,105130.0,105120.0,0.00309506]
[1738244051913,0.66685962,105130.0,105120.0,9.506e-05]
[1738244051914,0.67185962,105130.0,105120.0,9.506e-05]
[1738244052115,0.67385962,105130.0,105120.0,9.506e-05]
[1738244052813,0.66685962,105130.0,105120.0,9.506e-05]
[1738244053002,0.58138124,105130.0,105100.0,0.1]
[1738244053204,1.01569562,105110.0,105100.0,0.1]
[1738244053407,1.02569562,105110.0,105100.0,0.1]
[1738244053906,1.02569562,105110.0,105100.0,0.290323]
[1738244054215,0.7316,105110.0,105100.0,0.290323]
[1738244054512,0.7316,105110.0,105100.0,0.291323]